[Event "Late-Titled-Tuesday-Blitz-May-28-2024"]
[Site "Chess.com"]
[Date "2024.05.28"]
[Round "2"]
[White "Kielinkei"]
[Black "cthake"]
[Result "1-0"]
[WhiteElo "2435"]
[BlackElo "1764"]
[TimeControl "180+1"]
[EndTime "14:17:14 PDT"]
[Termination "Kielinkei won by resignation"]

1. c4 {[%clk 0:03:00.9]} 1... e5 {[%clk 0:02:58.5]} 2. g3 {[%clk 0:03:00.9]}
2... Nc6 {[%clk 0:02:58.3]} 3. Bg2 {[%clk 0:03:01.2]} 3... g6 {[%clk 0:02:58.4]}
4. Nc3 {[%clk 0:03:01.5]} 4... Bg7 {[%clk 0:02:58.4]} 5. e4 {[%clk 0:03:00.8]}
5... d6 {[%clk 0:02:58.3]} 6. Nge2 {[%clk 0:03:01.1]} 6... Nge7 {[%clk
0:02:57.9]} 7. O-O {[%clk 0:03:01.1]} 7... O-O {[%clk 0:02:58]} 8. d3 {[%clk
0:03:01.7]} 8... Be6 {[%clk 0:02:57.7]} 9. f4 {[%clk 0:03:00.8]} 9... f5 {[%clk
0:02:57]} 10. Be3 {[%clk 0:02:57.9]} 10... Qd7 {[%clk 0:02:56.6]} 11. Qd2 {[%clk
0:02:57.3]} 11... fxe4 {[%clk 0:02:55.5]} 12. Nxe4 {[%clk 0:02:57.3]} 12... Bh3
{[%clk 0:02:49]} 13. Rae1 {[%clk 0:02:38.7]} 13... Bxg2 {[%clk 0:02:48.2]} 14.
Kxg2 {[%clk 0:02:39.6]} 14... Nf5 {[%clk 0:02:47.1]} 15. Bg1 {[%clk 0:02:32]}
15... exf4 {[%clk 0:02:43.3]} 16. Nxf4 {[%clk 0:02:31.3]} 16... Ne5 {[%clk
0:02:40.4]} 17. Ng5 {[%clk 0:02:23.1]} 17... Rae8 {[%clk 0:02:30.9]} 18. Nd5
{[%clk 0:01:39.6]} 18... c6 {[%clk 0:02:20]} 19. Nf4 {[%clk 0:01:36]} 19... d5
{[%clk 0:02:07.3]} 20. cxd5 {[%clk 0:01:33.2]} 20... cxd5 {[%clk 0:02:07]} 21.
Bc5 {[%clk 0:01:27.5]} 21... Nd6 {[%clk 0:02:00.4]} 22. Qb4 {[%clk 0:01:15.5]}
22... Nc6 {[%clk 0:01:53.2]} 23. Qa3 {[%clk 0:01:07.8]} 23... Rxe1 {[%clk
0:01:52.7]} 24. Rxe1 {[%clk 0:01:07.1]} 24... Rf6 {[%clk 0:01:40.3]} 25. Nge6
{[%clk 0:01:04.5]} 25... g5 {[%clk 0:01:34.4]} 26. Nxg7 {[%clk 0:00:31.5]} 26...
Kxg7 {[%clk 0:01:33.4]} 27. Nh5+ {[%clk 0:00:28.3]} 27... Kg6 {[%clk 0:01:33.1]}
28. Nxf6 {[%clk 0:00:28.7]} 28... Qf5 {[%clk 0:01:24.4]} 29. Bxd6 {[%clk
0:00:27.1]} 29... Qxf6 {[%clk 0:01:24.7]} 30. Rf1 {[%clk 0:00:24.8]} 30... Qd4
{[%clk 0:01:22.9]} 31. Bc5 {[%clk 0:00:21.4]} 31... Qe5 {[%clk 0:01:19.4]} 32.
Qc3 {[%clk 0:00:19.5]} 32... Qe2+ {[%clk 0:01:19.1]} 33. Rf2 {[%clk 0:00:19.7]}
33... Qe6 {[%clk 0:01:15.3]} 34. Qh8 {[%clk 0:00:17.3]} 34... Ne5 {[%clk
0:01:14.7]} 35. Bd4 {[%clk 0:00:13.4]} 35... Nf7 {[%clk 0:01:12.2]} 36. Rf6+
{[%clk 0:00:10.4]} 1-0

[Event "Late-Titled-Tuesday-Blitz-May-28-2024"]
[Site "Chess.com"]
[Date "2024.05.28"]
[Round "2"]
[White "jbking07"]
[Black "nocnypako"]
[Result "0-1"]
[WhiteElo "2366"]
[BlackElo "2692"]
[TimeControl "180+1"]
[EndTime "14:17:15 PDT"]
[Termination "nocnypako won by resignation"]

1. e4 {[%clk 0:03:00.9]} 1... e6 {[%clk 0:02:55.8]} 2. d4 {[%clk 0:02:59.7]}
2... d5 {[%clk 0:02:56]} 3. Nd2 {[%clk 0:03:00.1]} 3... c5 {[%clk 0:02:55.1]} 4.
Ngf3 {[%clk 0:02:59.5]} 4... cxd4 {[%clk 0:02:53.9]} 5. exd5 {[%clk 0:02:55.2]}
5... Qxd5 {[%clk 0:02:53.2]} 6. Bc4 {[%clk 0:02:55.1]} 6... Qd6 {[%clk
0:02:53.5]} 7. O-O {[%clk 0:02:55.2]} 7... Nf6 {[%clk 0:02:54.1]} 8. Nb3 {[%clk
0:02:55.4]} 8... Nc6 {[%clk 0:02:54.7]} 9. Nbxd4 {[%clk 0:02:55.4]} 9... Nxd4
{[%clk 0:02:55.4]} 10. Nxd4 {[%clk 0:02:55.8]} 10... Be7 {[%clk 0:02:56]} 11. b3
{[%clk 0:02:55.9]} 11... O-O {[%clk 0:02:55.3]} 12. Bb2 {[%clk 0:02:56.3]} 12...
a6 {[%clk 0:02:51.4]} 13. Qf3 {[%clk 0:02:56.3]} 13... Qc7 {[%clk 0:02:45.7]}
14. Rfe1 {[%clk 0:02:53.3]} 14... Rb8 {[%clk 0:02:44.6]} 15. Bd3 {[%clk
0:02:53]} 15... Rd8 {[%clk 0:02:30.3]} 16. Rad1 {[%clk 0:02:50.9]} 16... h6
{[%clk 0:02:18.6]} 17. c4 {[%clk 0:02:31.8]} 17... Bb4 {[%clk 0:02:17.3]} 18.
Rf1 {[%clk 0:02:30.4]} 18... Bd7 {[%clk 0:02:11]} 19. a3 {[%clk 0:02:28.3]}
19... Bc5 {[%clk 0:01:59.8]} 20. Bb1 {[%clk 0:02:28.1]} 20... Re8 {[%clk
0:01:14.9]} 21. b4 {[%clk 0:02:21.8]} 21... Bxd4 {[%clk 0:01:07.8]} 22. Bxd4
{[%clk 0:02:21.4]} 22... e5 {[%clk 0:01:08]} 23. Bc5 {[%clk 0:02:18.3]} 23...
Bc6 {[%clk 0:01:00.9]} 24. Qf5 {[%clk 0:02:15.6]} 24... Rbd8 {[%clk 0:00:56.1]}
25. Rxd8 {[%clk 0:01:37.8]} 25... Rxd8 {[%clk 0:00:57]} 26. Re1 {[%clk
0:01:38.1]} 26... b6 {[%clk 0:00:55.4]} 27. Be3 {[%clk 0:01:37]} 27... Bd7
{[%clk 0:00:54.4]} 28. Qf3 {[%clk 0:01:35.5]} 28... e4 {[%clk 0:00:42.3]} 29.
Bxe4 {[%clk 0:01:29.4]} 29... Bg4 {[%clk 0:00:38.8]} 30. Qg3 {[%clk 0:01:18.2]}
30... Qxg3 {[%clk 0:00:37.6]} 31. hxg3 {[%clk 0:01:19.1]} 31... Nxe4 {[%clk
0:00:36.3]} 32. Bxb6 {[%clk 0:01:09.8]} 32... Rd1 {[%clk 0:00:32.3]} 33. Rxd1
{[%clk 0:01:07.3]} 33... Bxd1 {[%clk 0:00:33.2]} 34. c5 {[%clk 0:01:07.4]} 34...
Kf8 {[%clk 0:00:29.6]} 35. f3 {[%clk 0:01:05.3]} 35... Nc3 {[%clk 0:00:28]} 36.
c6 {[%clk 0:01:03.8]} 36... Ke8 {[%clk 0:00:20.5]} 37. Bd4 {[%clk 0:01:02.6]}
37... Ne2+ {[%clk 0:00:20.7]} 0-1

[Event "Late-Titled-Tuesday-Blitz-May-28-2024"]
[Site "Chess.com"]
[Date "2024.05.28"]
[Round "2"]
[White "Laico"]
[Black "WoodlandMagic"]
[Result "0-1"]
[WhiteElo "2423"]
[BlackElo "2835"]
[TimeControl "180+1"]
[EndTime "14:17:17 PDT"]
[Termination "WoodlandMagic won by resignation"]

1. e4 {[%clk 0:03:00.9]} 1... c5 {[%clk 0:02:00.4]} 2. Nc3 {[%clk 0:02:59.3]}
2... e6 {[%clk 0:02:00.3]} 3. f4 {[%clk 0:02:59.6]} 3... d5 {[%clk 0:01:59.1]}
4. Nf3 {[%clk 0:02:59.9]} 4... Nf6 {[%clk 0:01:56.6]} 5. e5 {[%clk 0:02:58.3]}
5... Ng8 {[%clk 0:01:56.1]} 6. Bb5+ {[%clk 0:02:57.5]} 6... Bd7 {[%clk
0:01:55.7]} 7. O-O {[%clk 0:02:55.6]} 7... Nh6 {[%clk 0:01:53]} 8. d3 {[%clk
0:02:44.6]} 8... Be7 {[%clk 0:01:52]} 9. Qe1 {[%clk 0:02:38.9]} 9... O-O {[%clk
0:01:46]} 10. h3 {[%clk 0:02:33.9]} 10... Bc8 {[%clk 0:01:42.9]} 11. d4 {[%clk
0:02:26]} 11... c4 {[%clk 0:01:40]} 12. g4 {[%clk 0:02:06.3]} 12... a6 {[%clk
0:01:39.7]} 13. Ba4 {[%clk 0:02:06.6]} 13... b5 {[%clk 0:01:39.5]} 14. f5 {[%clk
0:02:07]} 14... exf5 {[%clk 0:01:34.1]} 15. g5 {[%clk 0:02:06.9]} 15... Ng4
{[%clk 0:01:32.1]} 16. Bxb5 {[%clk 0:01:42.2]} 16... axb5 {[%clk 0:01:30.3]} 17.
Nxb5 {[%clk 0:01:43.1]} 17... Nc6 {[%clk 0:01:23]} 18. c3 {[%clk 0:01:20.7]}
18... Ba6 {[%clk 0:01:05.2]} 19. Nd6 {[%clk 0:00:59.6]} 19... Bxd6 {[%clk
0:01:03.9]} 20. exd6 {[%clk 0:01:00.5]} 20... Re8 {[%clk 0:01:03.6]} 21. Qg3
{[%clk 0:00:19.1]} 21... Ne3 {[%clk 0:01:00.5]} 22. Bxe3 {[%clk 0:00:19.2]}
22... Rxe3 {[%clk 0:01:00.2]} 23. Qf4 {[%clk 0:00:13.8]} 23... Re6 {[%clk
0:00:56.6]} 24. Qxf5 {[%clk 0:00:10.7]} 24... Qxd6 {[%clk 0:00:56.7]} 25. Ne5
{[%clk 0:00:10.7]} 25... Nxe5 {[%clk 0:00:56.6]} 26. dxe5 {[%clk 0:00:09.7]}
26... Qc5+ {[%clk 0:00:56.8]} 27. Kh1 {[%clk 0:00:09.4]} 27... Rf8 {[%clk
0:00:55.5]} 28. Rae1 {[%clk 0:00:08.1]} 28... Bb7 {[%clk 0:00:55.5]} 29. Kh2
{[%clk 0:00:08]} 29... d4 {[%clk 0:00:55.5]} 30. cxd4 {[%clk 0:00:07.3]} 30...
Qxd4 {[%clk 0:00:56.4]} 31. Rf4 {[%clk 0:00:07]} 31... Qd2+ {[%clk 0:00:55.5]}
0-1

[Event "Late-Titled-Tuesday-Blitz-May-28-2024"]
[Site "Chess.com"]
[Date "2024.05.28"]
[Round "2"]
[White "larsmandreassen"]
[Black "Cambek64"]
[Result "0-1"]
[WhiteElo "2228"]
[BlackElo "2503"]
[TimeControl "180+1"]
[EndTime "14:17:24 PDT"]
[Termination "Cambek64 won on time"]

1. d4 {[%clk 0:02:59.3]} 1... c5 {[%clk 0:02:57.2]} 2. Nf3 {[%clk 0:03:00.2]}
2... cxd4 {[%clk 0:02:56.6]} 3. c3 {[%clk 0:02:59.5]} 3... dxc3 {[%clk
0:02:55.7]} 4. Nxc3 {[%clk 0:03:00.4]} 4... Nc6 {[%clk 0:02:49.9]} 5. e4 {[%clk
0:03:01.3]} 5... e6 {[%clk 0:02:40.7]} 6. Bc4 {[%clk 0:03:00.7]} 6... Qc7 {[%clk
0:02:35.7]} 7. Qe2 {[%clk 0:02:55.6]} 7... Nf6 {[%clk 0:02:35.9]} 8. e5 {[%clk
0:02:51.1]} 8... Ng4 {[%clk 0:02:35.3]} 9. Bf4 {[%clk 0:02:51]} 9... f6 {[%clk
0:02:19.4]} 10. O-O {[%clk 0:02:09.4]} 10... Ngxe5 {[%clk 0:02:13.1]} 11. Nb5
{[%clk 0:02:03.4]} 11... Qb8 {[%clk 0:02:09.7]} 12. Rfe1 {[%clk 0:01:18.9]}
12... a6 {[%clk 0:02:04]} 13. Nbd4 {[%clk 0:01:09.6]} 13... Nxf3+ {[%clk
0:01:45.6]} 14. Qxf3 {[%clk 0:00:43.9]} 14... Nxd4 {[%clk 0:01:42.5]} 15. Qe4
{[%clk 0:00:23.4]} 15... Qa7 {[%clk 0:01:30.9]} 16. Be3 {[%clk 0:00:20.1]} 16...
Bc5 {[%clk 0:01:18.7]} 17. Rad1 {[%clk 0:00:19.6]} 17... O-O {[%clk 0:00:54.1]}
18. Rxd4 {[%clk 0:00:17.1]} 18... d5 {[%clk 0:00:52.1]} 19. Rxd5 {[%clk
0:00:08]} 19... Bxe3 {[%clk 0:00:44.8]} 20. Rxe3 {[%clk 0:00:08.3]} 20... exd5
{[%clk 0:00:42.3]} 21. Bxd5+ {[%clk 0:00:08.5]} 21... Kh8 {[%clk 0:00:40.8]} 0-1

[Event "Late-Titled-Tuesday-Blitz-May-28-2024"]
[Site "Chess.com"]
[Date "2024.05.28"]
[Round "2"]
[White "th3d4rkness"]
[Black "Josetricks"]
[Result "0-1"]
[WhiteElo "2152"]
[BlackElo "2464"]
[TimeControl "180+1"]
[EndTime "14:17:26 PDT"]
[Termination "Josetricks won by resignation"]

1. e4 {[%clk 0:03:00.9]} 1... c5 {[%clk 0:02:59.2]} 2. Nc3 {[%clk 0:03:00.3]}
2... d6 {[%clk 0:02:56.6]} 3. d4 {[%clk 0:03:00.2]} 3... cxd4 {[%clk 0:02:55.4]}
4. Qxd4 {[%clk 0:03:00.7]} 4... Nc6 {[%clk 0:02:55.8]} 5. Qd2 {[%clk 0:03:00.7]}
5... g6 {[%clk 0:02:51.5]} 6. b3 {[%clk 0:03:01]} 6... Bh6 {[%clk 0:02:49.2]} 7.
f4 {[%clk 0:03:00.8]} 7... Nf6 {[%clk 0:02:43.9]} 8. Bb2 {[%clk 0:02:58.5]} 8...
e5 {[%clk 0:02:41.9]} 9. g3 {[%clk 0:02:56]} 9... O-O {[%clk 0:02:39.6]} 10.
O-O-O {[%clk 0:02:54.2]} 10... a5 {[%clk 0:02:35.6]} 11. Bb5 {[%clk 0:02:50.6]}
11... Nd4 {[%clk 0:02:32.2]} 12. Re1 {[%clk 0:02:31.1]} 12... Be6 {[%clk
0:02:16.9]} 13. Kb1 {[%clk 0:02:22]} 13... Nxb5 {[%clk 0:02:11.2]} 14. Nxb5
{[%clk 0:02:20.8]} 14... d5 {[%clk 0:02:07.4]} 15. Bxe5 {[%clk 0:02:08.9]} 15...
Nxe4 {[%clk 0:02:05.1]} 16. Qd4 {[%clk 0:02:00.7]} 16... f6 {[%clk 0:02:02.6]}
17. Bc7 {[%clk 0:01:58.7]} 17... Qd7 {[%clk 0:02:02.8]} 18. a4 {[%clk
0:01:55.5]} 18... Rfc8 {[%clk 0:02:00.3]} 19. Bb6 {[%clk 0:01:50.9]} 19... Qc6
{[%clk 0:01:57.8]} 20. Re2 {[%clk 0:01:29.7]} 20... Ra6 {[%clk 0:01:48.1]} 21.
Na7 {[%clk 0:01:08.6]} 21... Qxb6 {[%clk 0:01:44]} 22. Qxb6 {[%clk 0:01:03.9]}
22... Rxb6 {[%clk 0:01:44.9]} 23. Nxc8 {[%clk 0:01:04.2]} 23... Bxc8 {[%clk
0:01:42.4]} 24. Kb2 {[%clk 0:00:54.1]} 24... Bg4 {[%clk 0:01:39.6]} 25. Rxe4
{[%clk 0:00:41.3]} 25... dxe4 {[%clk 0:01:39.5]} 26. h3 {[%clk 0:00:41.4]} 26...
Bf3 {[%clk 0:01:39.3]} 27. Nxf3 {[%clk 0:00:41.4]} 27... exf3 {[%clk 0:01:40.2]}
28. Rf1 {[%clk 0:00:41.4]} 28... f5 {[%clk 0:01:38.3]} 29. Rxf3 {[%clk
0:00:38.9]} 29... Bg7+ {[%clk 0:01:39.2]} 30. Kb1 {[%clk 0:00:39.2]} 30... Re6
{[%clk 0:01:38.4]} 31. c4 {[%clk 0:00:32.1]} 31... Re2 {[%clk 0:01:37.2]} 32. h4
{[%clk 0:00:29.7]} 32... b6 {[%clk 0:01:33]} 33. Rd3 {[%clk 0:00:29.5]} 33...
Kf7 {[%clk 0:01:30.5]} 34. Kc1 {[%clk 0:00:29.9]} 34... Rg2 {[%clk 0:01:28.2]}
35. Kd1 {[%clk 0:00:26.7]} 35... Bf8 {[%clk 0:01:27.9]} 36. Rd7+ {[%clk
0:00:25.4]} 36... Ke6 {[%clk 0:01:25.2]} 37. Rd3 {[%clk 0:00:24.3]} 37... Bc5
{[%clk 0:01:24.5]} 38. Rd2 {[%clk 0:00:19.8]} 38... Rxg3 {[%clk 0:01:23.8]} 39.
Re2+ {[%clk 0:00:18]} 39... Re3 {[%clk 0:01:24.2]} 40. Rd2 {[%clk 0:00:15.5]}
40... Rxb3 {[%clk 0:01:23.9]} 41. Kc2 {[%clk 0:00:15.9]} 41... Ra3 {[%clk
0:01:23.5]} 42. Re2+ {[%clk 0:00:16.3]} 42... Kf6 {[%clk 0:01:23.1]} 43. Re8
{[%clk 0:00:14.4]} 43... Rxa4 {[%clk 0:01:23.2]} 44. Kb3 {[%clk 0:00:12.7]}
44... Ra3+ {[%clk 0:01:23.5]} 45. Kc2 {[%clk 0:00:12.3]} 45... Rh3 {[%clk
0:01:24.1]} 46. Rc8 {[%clk 0:00:10.8]} 46... Rxh4 {[%clk 0:01:24.4]} 47. Rc6+
{[%clk 0:00:11.5]} 47... Kg7 {[%clk 0:01:24.6]} 48. Rc7+ {[%clk 0:00:11.9]}
48... Kh6 {[%clk 0:01:24.9]} 0-1

[Event "Late-Titled-Tuesday-Blitz-May-28-2024"]
[Site "Chess.com"]
[Date "2024.05.28"]
[Round "2"]
[White "Smiechu"]
[Black "Juliana_Figueira"]
[Result "1-0"]
[WhiteElo "2445"]
[BlackElo "1955"]
[TimeControl "180+1"]
[EndTime "14:17:29 PDT"]
[Termination "Smiechu won on time"]

1. e4 {[%clk 0:03:00.9]} 1... c5 {[%clk 0:02:59.6]} 2. Nf3 {[%clk 0:03:00.9]}
2... d6 {[%clk 0:02:59.6]} 3. d4 {[%clk 0:03:01.5]} 3... cxd4 {[%clk 0:02:59.2]}
4. Nxd4 {[%clk 0:03:02.4]} 4... a6 {[%clk 0:02:58.9]} 5. Nc3 {[%clk 0:03:01.8]}
5... Nf6 {[%clk 0:02:58.8]} 6. Be3 {[%clk 0:03:01.4]} 6... e5 {[%clk 0:02:57.1]}
7. Nb3 {[%clk 0:03:01.4]} 7... Be6 {[%clk 0:02:55.9]} 8. Qd2 {[%clk 0:03:01.5]}
8... Be7 {[%clk 0:02:55.7]} 9. O-O-O {[%clk 0:03:01.8]} 9... O-O {[%clk
0:02:55.4]} 10. f4 {[%clk 0:03:02]} 10... b5 {[%clk 0:02:50.2]} 11. f5 {[%clk
0:03:01.6]} 11... b4 {[%clk 0:02:05.8]} 12. fxe6 {[%clk 0:02:57]} 12... bxc3
{[%clk 0:02:05.6]} 13. exf7+ {[%clk 0:02:56.6]} 13... Rxf7 {[%clk 0:02:05.6]}
14. Qxc3 {[%clk 0:02:55.3]} 14... Nxe4 {[%clk 0:01:59.9]} 15. Qb4 {[%clk
0:02:53]} 15... d5 {[%clk 0:01:56.1]} 16. Qxe4 {[%clk 0:02:47.2]} 16... dxe4
{[%clk 0:01:51.8]} 17. Rxd8+ {[%clk 0:02:47]} 17... Bxd8 {[%clk 0:01:51.7]} 18.
Bc4 {[%clk 0:02:47.6]} 18... Nd7 {[%clk 0:01:45.3]} 19. Nc5 {[%clk 0:02:29.8]}
19... Nxc5 {[%clk 0:01:40]} 20. Bxc5 {[%clk 0:02:29.7]} 20... Rc8 {[%clk
0:01:39.4]} 21. b4 {[%clk 0:02:28.6]} 21... Be7 {[%clk 0:01:17.7]} 22. Rf1
{[%clk 0:02:23.4]} 22... Bf6 {[%clk 0:01:02.6]} 23. g4 {[%clk 0:02:22.2]} 23...
Bg5+ {[%clk 0:00:43.5]} 24. Kb2 {[%clk 0:02:20.3]} 24... Bf4 {[%clk 0:00:43.5]}
25. a4 {[%clk 0:02:08.1]} 25... a5 {[%clk 0:00:41.8]} 26. c3 {[%clk 0:02:05]}
26... axb4 {[%clk 0:00:41.5]} 27. cxb4 {[%clk 0:02:05]} 27... g6 {[%clk
0:00:34.8]} 28. a5 {[%clk 0:02:00.4]} 28... Kg7 {[%clk 0:00:34.7]} 29. Bxf7
{[%clk 0:01:58.6]} 29... Kxf7 {[%clk 0:00:35.6]} 30. a6 {[%clk 0:01:57.7]} 30...
Ke6 {[%clk 0:00:30.7]} 31. a7 {[%clk 0:01:52.9]} 31... e3 {[%clk 0:00:18.7]} 32.
Ra1 {[%clk 0:01:47.1]} 32... e2 {[%clk 0:00:14]} 33. Re1 {[%clk 0:01:40.2]}
33... Kd5 {[%clk 0:00:07.9]} 34. Rxe2 {[%clk 0:01:39.3]} 34... e4 {[%clk
0:00:08]} 35. Kb3 {[%clk 0:01:35.9]} 35... e3 {[%clk 0:00:05.2]} 36. Bxe3 {[%clk
0:01:33.5]} 36... Re8 {[%clk 0:00:04.6]} 37. Bxf4 {[%clk 0:01:32.6]} 37... Ra8
{[%clk 0:00:02.1]} 38. Bb8 {[%clk 0:01:31.8]} 38... Kc6 {[%clk 0:00:01.1]} 39.
Re7 {[%clk 0:01:31.1]} 39... Kb6 {[%clk 0:00:01.2]} 40. Rxh7 {[%clk 0:01:31]}
40... Kc6 {[%clk 0:00:01.5]} 41. Rg7 {[%clk 0:01:31.2]} 41... Kb6 {[%clk
0:00:02.1]} 42. Rxg6+ {[%clk 0:01:31.4]} 42... Kb7 {[%clk 0:00:02.8]} 43. b5
{[%clk 0:01:27.6]} 43... Kc8 {[%clk 0:00:02.6]} 44. b6 {[%clk 0:01:27.2]} 44...
Kb7 {[%clk 0:00:02.7]} 45. h4 {[%clk 0:01:26.8]} 45... Kc8 {[%clk 0:00:01.1]}
46. Rg7 {[%clk 0:01:26.7]} 1-0

[Event "Late-Titled-Tuesday-Blitz-May-28-2024"]
[Site "Chess.com"]
[Date "2024.05.28"]
[Round "2"]
[White "guillembaches"]
[Black "GoValya"]
[Result "1/2-1/2"]
[WhiteElo "2486"]
[BlackElo "2222"]
[TimeControl "180+1"]
[EndTime "14:17:30 PDT"]
[Termination "Game drawn by agreement"]

1. d4 {[%clk 0:03:00.9]} 1... Nf6 {[%clk 0:02:59.3]} 2. Nf3 {[%clk 0:03:01]}
2... g6 {[%clk 0:02:59]} 3. Bg5 {[%clk 0:03:01]} 3... Ne4 {[%clk 0:02:58.3]} 4.
Bh4 {[%clk 0:02:58.2]} 4... d5 {[%clk 0:02:57]} 5. Nbd2 {[%clk 0:02:56.3]} 5...
Bg7 {[%clk 0:02:55.9]} 6. e3 {[%clk 0:02:52.7]} 6... c5 {[%clk 0:02:45.6]} 7. c3
{[%clk 0:02:39.5]} 7... cxd4 {[%clk 0:02:35]} 8. exd4 {[%clk 0:02:35.9]} 8...
Nxd2 {[%clk 0:02:30.4]} 9. Qxd2 {[%clk 0:02:34.9]} 9... O-O {[%clk 0:02:31]} 10.
Be2 {[%clk 0:02:32.1]} 10... Nc6 {[%clk 0:02:29.7]} 11. O-O {[%clk 0:02:32]}
11... Qb6 {[%clk 0:02:28.5]} 12. Rfe1 {[%clk 0:02:30.8]} 12... Bf5 {[%clk
0:02:25.5]} 13. h3 {[%clk 0:02:22.9]} 13... Rfe8 {[%clk 0:02:19.6]} 14. Bf1
{[%clk 0:02:18]} 14... Be4 {[%clk 0:02:15]} 15. Ng5 {[%clk 0:02:04.7]} 15... e5
{[%clk 0:01:58.3]} 16. Nxe4 {[%clk 0:01:58.1]} 16... dxe4 {[%clk 0:01:58.1]} 17.
d5 {[%clk 0:01:55.3]} 17... Ne7 {[%clk 0:01:52.3]} 18. Bxe7 {[%clk 0:01:46.6]}
18... Rxe7 {[%clk 0:01:53.2]} 19. Rxe4 {[%clk 0:01:43.4]} 19... f5 {[%clk
0:01:53.2]} 20. Ree1 {[%clk 0:01:41.7]} 20... Qd6 {[%clk 0:01:49.8]} 21. Rad1
{[%clk 0:01:33.5]} 21... e4 {[%clk 0:01:49.7]} 22. c4 {[%clk 0:01:26.7]} 22...
Rae8 {[%clk 0:01:49.2]} 23. b4 {[%clk 0:01:25.2]} 23... b6 {[%clk 0:01:47.2]}
24. Rc1 {[%clk 0:01:19]} 24... e3 {[%clk 0:01:34]} 25. fxe3 {[%clk 0:01:05.6]}
25... Bh6 {[%clk 0:01:34.1]} 26. Kh1 {[%clk 0:00:47.7]} 26... Rxe3 {[%clk
0:01:21.4]} 27. Rxe3 {[%clk 0:00:40.5]} 27... Bxe3 {[%clk 0:01:05.8]} 28. Qe2
{[%clk 0:00:39.9]} 28... Qxb4 {[%clk 0:01:01.1]} 29. Rd1 {[%clk 0:00:36.4]}
29... Qd6 {[%clk 0:00:59.1]} 30. Qf3 {[%clk 0:00:34.6]} 30... Bc5 {[%clk
0:00:54.4]} 31. Rd2 {[%clk 0:00:29.1]} 31... Re3 {[%clk 0:00:53.9]} 32. Qd1
{[%clk 0:00:27.1]} 1/2-1/2

[Event "Late-Titled-Tuesday-Blitz-May-28-2024"]
[Site "Chess.com"]
[Date "2024.05.28"]
[Round "2"]
[White "moro182"]
[Black "Ramosha"]
[Result "1-0"]
[WhiteElo "2886"]
[BlackElo "2561"]
[TimeControl "180+1"]
[EndTime "14:17:31 PDT"]
[Termination "moro182 won by resignation"]

1. d4 {[%clk 0:03:00.9]} 1... Nf6 {[%clk 0:03:00.2]} 2. Bf4 {[%clk 0:02:59.9]}
2... e6 {[%clk 0:03:00.5]} 3. e3 {[%clk 0:02:59.1]} 3... c5 {[%clk 0:03:00.5]}
4. Nf3 {[%clk 0:02:54.9]} 4... Nc6 {[%clk 0:03:00.9]} 5. c3 {[%clk 0:02:51.6]}
5... Qb6 {[%clk 0:02:59.7]} 6. Qb3 {[%clk 0:02:50.8]} 6... Be7 {[%clk
0:02:59.5]} 7. Nbd2 {[%clk 0:02:49.1]} 7... d5 {[%clk 0:02:59.5]} 8. Qxb6 {[%clk
0:02:43.7]} 8... axb6 {[%clk 0:02:59.5]} 9. Bb5 {[%clk 0:02:43.9]} 9... Bd7
{[%clk 0:02:59.1]} 10. O-O {[%clk 0:02:43.2]} 10... O-O {[%clk 0:02:56.4]} 11.
a3 {[%clk 0:02:43]} 11... c4 {[%clk 0:02:53.8]} 12. a4 {[%clk 0:02:38.3]} 12...
Ra5 {[%clk 0:02:48.8]} 13. Bc7 {[%clk 0:02:35.5]} 13... Bd8 {[%clk 0:02:47.9]}
14. Bd6 {[%clk 0:02:33.3]} 14... Re8 {[%clk 0:02:46]} 15. b4 {[%clk 0:02:30.1]}
15... Ra8 {[%clk 0:02:42.1]} 16. Ne5 {[%clk 0:02:24.6]} 16... Be7 {[%clk
0:02:28.3]} 17. Bc7 {[%clk 0:02:15.5]} 17... Bd8 {[%clk 0:02:26.9]} 18. Bd6
{[%clk 0:02:11.8]} 18... Be7 {[%clk 0:02:27.1]} 19. Bxe7 {[%clk 0:02:10.1]}
19... Rxe7 {[%clk 0:02:28]} 20. Nxd7 {[%clk 0:02:03.5]} 20... Nxd7 {[%clk
0:02:27.4]} 21. e4 {[%clk 0:02:01.9]} 21... Ree8 {[%clk 0:02:20.4]} 22. Rfe1
{[%clk 0:01:59.7]} 22... Kf8 {[%clk 0:02:16.1]} 23. a5 {[%clk 0:01:56.1]} 23...
bxa5 {[%clk 0:02:15.7]} 24. bxa5 {[%clk 0:01:57]} 24... Ra7 {[%clk 0:02:15]} 25.
a6 {[%clk 0:01:49.5]} 25... Rea8 {[%clk 0:02:01.2]} 26. exd5 {[%clk 0:01:42.9]}
26... exd5 {[%clk 0:01:59]} 27. axb7 {[%clk 0:01:35.3]} 27... Rxa1 {[%clk
0:01:44.8]} 28. bxa8=Q+ {[%clk 0:01:34.7]} 28... Rxa8 {[%clk 0:01:45]} 29. Bxc6
{[%clk 0:01:35.5]} 29... Ra7 {[%clk 0:01:45.7]} 30. Bxd5 {[%clk 0:01:32.9]}
30... Ra3 {[%clk 0:01:43.8]} 31. Nxc4 {[%clk 0:01:29.8]} 31... Rxc3 {[%clk
0:01:43.7]} 32. Nd6 {[%clk 0:01:27.1]} 32... g6 {[%clk 0:01:42]} 33. Nxf7 {[%clk
0:01:24.2]} 33... Nb6 {[%clk 0:01:31.8]} 34. Be6 {[%clk 0:01:21.7]} 34... Rd3
{[%clk 0:01:29]} 35. d5 {[%clk 0:01:21.7]} 35... Nc4 {[%clk 0:01:26]} 36. h3
{[%clk 0:01:18.6]} 36... Kg7 {[%clk 0:01:24.6]} 37. Ne5 {[%clk 0:01:17]} 37...
Nxe5 {[%clk 0:01:23.8]} 38. Rxe5 {[%clk 0:01:17.9]} 38... Kf6 {[%clk 0:01:24.7]}
39. Re3 {[%clk 0:01:17.4]} 39... Rd1+ {[%clk 0:01:24.2]} 40. Kh2 {[%clk
0:01:17.7]} 40... h5 {[%clk 0:01:25.1]} 41. Rf3+ {[%clk 0:01:17.6]} 41... Kg5
{[%clk 0:01:24.9]} 42. g3 {[%clk 0:01:16.7]} 42... h4 {[%clk 0:01:24.5]} 43. Kg2
{[%clk 0:01:16.4]} 43... hxg3 {[%clk 0:01:22.7]} 44. Rxg3+ {[%clk 0:01:17.3]}
44... Kh4 {[%clk 0:01:22.2]} 45. Rg4+ {[%clk 0:01:16.8]} 45... Kh5 {[%clk
0:01:22.1]} 46. Bf7 {[%clk 0:01:17.3]} 46... Rd2 {[%clk 0:01:16.7]} 47. Bxg6+
{[%clk 0:01:16.2]} 47... Kh6 {[%clk 0:01:16.7]} 48. Be4 {[%clk 0:01:16.2]} 48...
Kh5 {[%clk 0:01:15.7]} 49. Bf3 {[%clk 0:01:16.3]} 49... Kh6 {[%clk 0:01:15.4]}
50. Ra4 {[%clk 0:01:14.7]} 50... Kg5 {[%clk 0:01:15.3]} 51. Ra1 {[%clk
0:01:15.2]} 51... Kh4 {[%clk 0:00:53]} 52. Rd1 {[%clk 0:01:10.7]} 52... Rxd5
{[%clk 0:00:53.7]} 53. Bxd5 {[%clk 0:01:09]} 1-0